bitfinex/quotes_BTCUSD_20220109
["timestamp","ask_amount","ask_price","bid_price","bid_amount"]
[1641692934493,0.01070687,41701.0,41700.0,0.61833826]
[1641692935193,0.10729618,41705.0,41702.0,0.05996085]
[1641692935595,0.10729618,41705.0,41703.0,0.119922]
[1641692935795,0.10729618,41705.0,41703.0,0.059961]
[1641692936197,0.10729618,41705.0,41703.0,0.11992185]
[1641692936431,0.10729618,41705.0,41703.0,0.12592185]
[1641692937828,0.10729618,41705.0,41703.0,0.17988285]
[1641692938030,0.08399109,41705.0,41703.0,0.17988285]
[1641692938232,0.08399109,41705.0,41703.0,0.11992185]
[1641692938430,0.07034109,41705.0,41703.0,0.12592185]
[1641692939031,0.07034109,41705.0,41703.0,0.06596085]
[1641692939733,0.07034109,41705.0,41703.0,0.05996085]
[1641692940183,0.00044976,41708.0,41703.0,0.059964]
[1641692940385,0.00044976,41708.0,41698.0,0.24140247]
[1641692940587,0.00044976,41708.0,41703.0,0.005]
[1641692941489,0.119919,41706.0,41705.0,0.05996079]
[1641692942086,0.07499167,41706.0,41705.0,0.05996079]
[1641692942287,0.05586167,41706.0,41705.0,0.05996079]
[1641692942487,0.05586167,41706.0,41705.0,0.06296079]
[1641692944230,0.05586167,41706.0,41705.0,0.05996079]
[1641692944429,0.05586167,41706.0,41705.0,0.06496079]
[1641692945730,0.05586167,41706.0,41705.0,0.05996079]
[1641692946533,0.05586167,41706.0,41705.0,0.06296079]
[1641692947535,0.05086167,41706.0,41705.0,0.06296079]
[1641692947781,0.05086167,41706.0,41705.0,0.05996079]
[1641692948082,0.01997599,41706.0,41705.0,0.05996079]
[1641692948281,0.00090599,41706.0,41705.0,0.05996079]
[1641692948580,0.10175599,41707.0,41705.0,0.05996079]
[1641692948779,0.09139599,41707.0,41705.0,0.05996079]
[1641692949984,0.119919,41706.0,41705.0,0.05996079]
[1641692950581,0.119919,41706.0,41705.0,0.06296079]
[1641692951825,0.119919,41706.0,41705.0,0.05996079]
[1641692952224,0.07587128,41706.0,41705.0,0.05996079]
[1641692952425,0.05680128,41706.0,41705.0,0.05996079]
[1641692952626,0.04328128,41706.0,41705.0,0.06496079]
[1641692953927,0.04328128,41706.0,41705.0,0.05996079]
[1641692954526,0.04328128,41706.0,41705.0,0.06396079]
[1641692955779,0.04328128,41706.0,41705.0,0.05996079]
[1641692956579,0.04328128,41706.0,41705.0,0.06096079]
[1641692957682,0.03828128,41706.0,41705.0,0.06096079]
[1641692957981,0.03828128,41706.0,41705.0,0.05996079]
[1641692958582,0.03828128,41706.0,41705.0,0.06396079]
[1641692959733,0.03828128,41706.0,41705.0,0.05996079]
[1641692960538,0.03828128,41706.0,41705.0,0.06396079]
[1641692962436,0.03328128,41706.0,41705.0,0.05996079]
[1641692962679,0.03328128,41706.0,41705.0,0.06296079]
[1641692963881,0.03328128,41706.0,41705.0,0.05996079]
[1641692964683,0.03328128,41706.0,41705.0,0.06296079]
[1641692965787,0.03328128,41706.0,41705.0,0.05996079]
[1641692966629,0.03328128,41706.0,41705.0,0.06296079]
[1641692967431,0.02828128,41706.0,41705.0,0.06296079]
[1641692967632,0.059959,41707.0,41705.0,0.06296079]
[1641692967833,0.059959,41707.0,41705.0,0.17986904]
[1641692968432,0.06001973,41707.0,41705.0,0.17986904]
[1641692968633,0.06001973,41707.0,41705.0,0.18686904]
[1641692968832,0.06001973,41707.0,41705.0,0.24682304]
[1641692969835,0.06001973,41707.0,41705.0,0.23982304]
[1641692970680,0.06001973,41707.0,41705.0,0.24582304]
[1641692971979,0.06001973,41707.0,41705.0,0.23982304]
[1641692972580,0.06001973,41707.0,41705.0,0.24482304]
[1641692974029,0.06001973,41707.0,41705.0,0.23982304]
[1641692974629,0.06001973,41707.0,41705.0,0.24682304]
[1641692975031,0.06001973,41707.0,41706.0,0.20991068]
[1641692976632,0.06001973,41707.0,41706.0,0.21491068]
[1641692977693,0.06001973,41707.0,41706.0,0.005]
[1641692977893,0.06001973,41707.0,41705.0,0.23982304]
[1641692978195,0.06001973,41707.0,41706.0,0.21001176]
[1641692980596,0.06001973,41707.0,41706.0,0.21401176]
[1641692981838,0.06001973,41707.0,41706.0,0.21001176]
[1641692982638,0.06001973,41707.0,41706.0,0.21501176]
[1641692983839,0.06001973,41707.0,41706.0,0.21001176]
[1641692984643,0.06001973,41707.0,41706.0,0.21501176]
[1641692985894,0.06001973,41707.0,41706.0,0.21001176]
[1641692986696,0.06001973,41707.0,41706.0,0.21701176]
[1641692987897,0.06001973,41707.0,41706.0,0.21001176]
[1641692988695,0.06001973,41707.0,41706.0,0.60086876]
[1641692989337,8.06001973,41707.0,41706.0,0.60086876]
[1641692989538,8.06001973,41707.0,41706.0,0.005]
[1641692989938,8.06001973,41707.0,41705.0,0.23982304]
[1641692990740,8.00006073,41707.0,41705.0,0.24682304]
[1641692990939,8.00006073,41707.0,41706.0,0.20728892]
[1641692992791,8.00006073,41707.0,41706.0,0.21428892]
[1641692993787,8.00006073,41707.0,41706.0,0.007]
[1641692993990,8.00006073,41707.0,41705.0,0.23982304]
[1641692994687,8.00006073,41707.0,41705.0,0.24582304]
[1641692995791,8.00006073,41707.0,41705.0,0.23982304]
[1641692996634,8.00006073,41707.0,41705.0,0.24582304]
[1641692997835,8.00006073,41707.0,41705.0,0.23982304]
[1641692998634,8.00006073,41707.0,41705.0,0.24582304]
[1641692999836,8.00006073,41707.0,41705.0,0.23982304]
[1641693000287,8.00006073,41707.0,41706.0,0.20746914]
[1641693002293,8.00006073,41707.0,41705.0,0.23982304]
[1641693002793,8.00006073,41707.0,41706.0,0.005]
[1641693003395,8.00006073,41707.0,41706.0,0.21075884]
[1641693003796,8.00006073,41707.0,41706.0,0.31075884]
[1641693004041,8.00006073,41707.0,41706.0,0.40575884]
[1641693004241,5.03130513,41707.0,41706.0,1.15575884]
[1641693004540,0.000696,41715.0,41708.0,1.13712173]
[1641693004743,0.004,41719.0,41714.0,0.00128031]
[1641693004942,0.004,41719.0,41718.0,1.20177042]
[1641693005140,0.004,41719.0,41718.0,1.35177042]
[1641693006341,0.00443998,41719.0,41718.0,1.35177042]
[1641693006640,0.00362998,41719.0,41718.0,1.35177042]
[1641693006844,0.00362998,41719.0,41718.0,1.36277042]
[1641693007543,0.004,41729.0,41723.0,0.059922]
[1641693007790,0.004,41729.0,41726.0,0.059928]
[1641693008792,0.059928,41728.0,41727.0,0.05992783]
[1641693009989,0.004,41729.0,41727.0,0.05992783]
[1641693009990,0.123852,41729.0,41727.0,0.05992783]
[1641693010389,0.063925,41729.0,41727.0,0.05992783]
[1641693010890,0.00044759,41728.0,41727.0,0.06692783]
[1641693011091,0.05937259,41729.0,41727.0,0.06692783]
[1641693012042,0.05937259,41729.0,41727.0,0.05992783]
[1641693012842,0.07337259,41729.0,41727.0,0.06392783]
[1641693013645,0.00044759,41728.0,41727.0,0.06392783]
[1641693014045,0.00044759,41728.0,41727.0,0.05992783]
[1641693014245,0.05937259,41729.0,41727.0,0.05992783]
[1641693014445,0.04937259,41729.0,41727.0,0.05992783]
[1641693014844,0.06637259,41729.0,41727.0,0.06492783]
[1641693015886,0.06637259,41729.0,41727.0,0.05992783]
[1641693016086,0.04937259,41729.0,41727.0,0.05992783]
[1641693016786,0.06537259,41729.0,41727.0,0.06592783]
[1641693017788,0.06537259,41729.0,41727.0,0.18576883]
[1641693017989,0.04937259,41729.0,41727.0,0.17976883]
[1641693018591,0.04937259,41729.0,41727.0,0.05992783]
[1641693018791,0.06637259,41729.0,41727.0,0.06492783]
[1641693019238,0.05637259,41729.0,41727.0,0.06492783]
[1641693019839,0.017,41729.0,41727.0,0.18476883]
[1641693020137,1.42782378,41731.0,41728.0,0.059913]
[1641693020338,1.42782378,41731.0,41730.0,0.11982455]
[1641693020739,1.42782378,41731.0,41730.0,0.16982455]
[1641693020936,1.42782378,41731.0,41730.0,0.21982455]
[1641693021539,1.42782378,41731.0,41730.0,0.22110012]
[1641693021940,1.42782378,41731.0,41730.0,0.11982455]
[1641693022687,1.42782378,41731.0,41730.0,0.13182455]
[1641693023894,1.41782378,41731.0,41730.0,0.13182455]
[1641693024095,1.41782378,41731.0,41730.0,0.11982455]
[1641693024893,1.41782378,41731.0,41730.0,0.13182455]
[1641693025792,1.41282378,41731.0,41730.0,0.13182455]
[1641693025992,1.41282378,41731.0,41730.0,0.11982455]
[1641693026742,1.41282378,41731.0,41730.0,0.12782455]
[1641693027543,1.41282378,41731.0,41730.0,0.22782455]
[1641693028142,1.41282378,41731.0,41730.0,0.21982455]
[1641693028842,1.41282378,41731.0,41730.0,0.23182455]
[1641693029943,1.41282378,41731.0,41730.0,0.21982455]
[1641693030189,1.41282378,41731.0,41730.0,0.43838041]
[1641693030791,1.41282378,41731.0,41730.0,0.45038041]
[1641693031196,1.41282378,41731.0,41730.0,0.55038041]
[1641693031391,1.41282378,41731.0,41730.0,0.55159569]
[1641693032192,1.41282378,41731.0,41730.0,0.53959569]
[1641693032794,1.41282378,41731.0,41730.0,0.55159569]
[1641693032992,1.41282378,41731.0,41730.0,0.55038041]
[1641693034244,1.41282378,41731.0,41730.0,0.53838041]
[1641693034947,1.41282378,41731.0,41730.0,0.55138041]
[1641693036147,1.41282378,41731.0,41730.0,0.53838041]
[1641693036846,1.41282378,41731.0,41730.0,0.55138041]
[1641693038086,1.41282378,41731.0,41730.0,0.53838041]
[1641693038787,1.41282378,41731.0,41730.0,0.55138041]
[1641693039994,1.41282378,41731.0,41730.0,0.53838041]
[1641693040891,1.41282378,41731.0,41730.0,0.55138041]
[1641693042133,1.41282378,41731.0,41730.0,0.53838041]
[1641693042934,1.41282378,41731.0,41730.0,0.55138041]
[1641693044235,1.41282378,41731.0,41730.0,0.53838041]
[1641693044835,1.41282378,41731.0,41730.0,0.55138041]
[1641693045688,1.41282378,41731.0,41730.0,1.05138041]
[1641693045885,1.41282378,41731.0,41730.0,0.83282455]
[1641693046085,1.41282378,41731.0,41730.0,0.81982455]
[1641693046686,1.41282378,41731.0,41730.0,1.0374136]
[1641693046886,1.41282378,41731.0,41730.0,0.83282455]
[1641693047089,1.41282378,41731.0,41730.0,0.63282455]
[1641693048087,1.41282378,41731.0,41730.0,0.61982455]
[1641693048687,1.41282378,41731.0,41730.0,0.61482455]
[1641693048950,1.41282378,41731.0,41730.0,0.62182455]
[1641693049150,1.46062378,41731.0,41730.0,0.507]
[1641693049352,1.46062378,41731.0,41724.0,0.68899621]
[1641693049353,0.75,41730.0,41724.0,0.56915021]
[1641693049551,0.88434573,41725.0,41724.0,0.56915021]
[1641693049750,0.95405195,41725.0,41724.0,0.56915021]
[1641693050853,0.99405195,41725.0,41724.0,0.56318021]
[1641693051651,0.67560195,41725.0,41724.0,0.56318021]
[1641693051850,0.65472381,41725.0,41724.0,0.56318021]
[1641693052254,0.86252381,41725.0,41724.0,0.56318021]
[1641693052551,1.46814458,41725.0,41724.0,0.08358921]
[1641693052801,1.46943671,41725.0,41724.0,0.08358921]
[1641693052995,1.38143671,41725.0,41724.0,0.08358921]
[1641693053194,0.88143671,41725.0,41724.0,0.08358921]
[1641693054196,0.86943671,41725.0,41724.0,0.08358921]
[1641693054997,0.88743671,41725.0,41724.0,0.08358921]
[1641693056000,0.68743671,41725.0,41724.0,0.08358921]
[1641693056199,0.66943671,41725.0,41724.0,0.08358921]
[1641693056438,0.65,41724.0,41723.0,0.00037701]
[1641693056638,0.97191014,41724.0,41723.0,0.00037701]
[1641693057238,0.97191014,41724.0,41723.0,0.00037702]
[1641693057842,0.97191014,41724.0,41708.0,0.12114742]
[1641693057843,0.75,41723.0,41708.0,0.12114742]
[1641693058043,0.059955,41716.0,41708.0,0.11990062]
[1641693058239,0.32012116,41715.0,41708.0,0.32093774]
[1641693058640,0.29364614,41714.0,41708.0,0.32093774]
[1641693058840,0.29364614,41714.0,41707.0,0.259954]
[1641693059041,0.29364614,41714.0,41708.0,0.009]
[1641693059241,0.38557845,41713.0,41708.0,0.009]
[1641693059445,0.45834268,41713.0,41708.0,0.009]
[1641693059742,0.45834268,41713.0,41693.0,0.3082]
[1641693059743,0.191,41707.0,41693.0,0.3082]
[1641693059943,0.20280346,41706.0,41693.0,0.3082]
[1641693060191,0.20280346,41706.0,41692.0,0.000696]
[1641693060192,0.20841016,41706.0,41692.0,0.000696]
[1641693060394,0.32577535,41693.0,41692.0,0.000696]
[1641693060595,0.42006535,41693.0,41692.0,0.12064303]
[1641693060990,0.42706535,41693.0,41692.0,0.12064303]
[1641693061390,0.48704435,41693.0,41692.0,0.000696]
[1641693061792,0.82805829,41693.0,41692.0,0.000696]
[1641693062396,0.83366499,41693.0,41692.0,0.000696]
[1641693062592,0.75,41692.0,41688.0,0.00011]
[1641693062793,0.107797,41691.0,41688.0,0.00011]
[1641693062993,0.31184312,41690.0,41688.0,0.00011]
[1641693063194,0.0478,41689.0,41688.0,0.00011]
[1641693063397,0.34234955,41689.0,41688.0,0.00011]
[1641693064046,0.49234955,41689.0,41688.0,0.00011]
[1641693064444,0.49234955,41689.0,41688.0,0.00048978]
[1641693065044,0.55384955,41689.0,41688.0,0.00048978]
[1641693065644,0.95384955,41689.0,41687.0,0.00011]
[1641693065947,0.29727848,41688.0,41687.0,0.00011]
[1641693066145,0.29727848,41688.0,41677.0,0.00011]
[1641693066146,0.75,41687.0,41677.0,0.00011]
[1641693066443,0.0012543,41681.0,41677.0,0.00011]
[1641693066644,0.28180731,41680.0,41677.0,0.00011]
[1641693066844,0.28166581,41679.0,41677.0,0.00011]
[1641693067046,0.0478,41679.0,41677.0,0.00011]
[1641693067690,0.0478,41679.0,41678.0,0.00063215]
[1641693068790,0.0478,41679.0,41678.0,0.00059735]
[1641693068991,0.0718,41679.0,41678.0,0.00059735]
[1641693070091,0.0478,41679.0,41678.0,0.00059735]
[1641693070891,0.0658,41679.0,41678.0,0.0009747]
[1641693071094,0.0658,41679.0,41678.0,0.00059735]
[1641693072140,0.0478,41679.0,41678.0,0.0005816]
[1641693073038,0.0668,41679.0,41678.0,0.0005816]
[1641693073238,0.0668,41679.0,41678.0,0.00059024]
[1641693074439,0.0478,41679.0,41678.0,0.00059024]
[1641693074640,0.4978,41679.0,41678.0,0.00059024]
[1641693075042,0.52639312,41679.0,41678.0,0.00059024]
[1641693075294,0.52639312,41679.0,41678.0,0.00096048]
[1641693075594,0.52639312,41679.0,41678.0,0.00059024]
[1641693076195,0.54989312,41679.0,41678.0,0.00059024]
[1641693076394,0.54989312,41679.0,41678.0,0.00096078]
[1641693076595,0.54989312,41679.0,41678.0,0.00059054]
[1641693076998,0.56289312,41679.0,41678.0,0.00059054]
[1641693077400,0.11289312,41679.0,41678.0,0.00059054]
[1641693077599,0.11289312,41679.0,41678.0,0.00096088]
[1641693077800,0.11289312,41679.0,41678.0,0.00059034]
[1641693078201,0.54989312,41679.0,41677.0,0.00010034]
[1641693078400,0.21991412,41679.0,41674.0,5.034e-05]
[1641693078603,0.21991412,41679.0,41678.0,0.00037034]
[1641693078805,0.6,41678.0,41671.0,0.00214068]
[1641693079044,0.6,41678.0,41669.0,0.00021068]
[1641693079045,0.060015,41675.0,41669.0,0.00021068]
[1641693079443,0.060015,41675.0,41667.0,0.00030668]
[1641693079742,0.33027881,41674.0,41666.0,0.11972351]
[1641693079943,0.31630933,41673.0,41666.0,0.11931351]
[1641693080143,0.31630933,41673.0,41665.0,0.00022]
[1641693080144,0.27921292,41664.0,41663.0,0.00014]
[1641693080344,0.27921292,41664.0,41663.0,0.385997]
[1641693080748,0.13027881,41674.0,41663.0,0.385997]
[1641693080945,0.13027881,41674.0,41663.0,0.28762227]
[1641693081543,0.13027881,41674.0,41663.0,0.059726]
[1641693082044,0.060018,41665.0,41663.0,0.059726]
[1641693082244,0.060018,41665.0,41664.0,0.385857]
[1641693082444,0.060018,41665.0,41663.0,0.059726]
[1641693083114,0.062018,41665.0,41663.0,0.059726]
[1641693084307,0.060018,41665.0,41663.0,0.059726]
[1641693084508,0.060018,41665.0,41662.0,0.12024699]
[1641693084509,0.2501415,41664.0,41662.0,0.00022]
[1641693084709,0.0478,41663.0,41662.0,0.00022]
[1641693085508,0.10784,41663.0,41659.0,0.00022]
[1641693085710,0.06004,41662.0,41659.0,0.00022]
[1641693085908,0.2221743,41661.0,41659.0,0.00022]
[1641693086742,0.15434,41662.0,41659.0,0.00022]
[1641693086743,0.25126791,41660.0,41659.0,0.00022]
[1641693086944,0.15434,41662.0,41659.0,0.00022]
[1641693087145,0.015,41661.0,41657.0,0.00011]
[1641693087345,0.015,41661.0,41655.0,0.27936131]
[1641693087746,0.015,41661.0,41658.0,0.120039]
[1641693087947,0.015,41661.0,41659.0,0.06001896]
[1641693088347,0.06004,41662.0,41659.0,0.06001896]
[1641693089051,0.07204,41662.0,41659.0,0.06001896]
[1641693089646,0.07204,41662.0,41657.0,0.06002711]
[1641693090047,0.07204,41662.0,41656.0,0.05]
[1641693090298,0.55886975,41666.0,41656.0,0.05]
[1641693090299,0.060015,41664.0,41656.0,0.05]
[1641693090494,0.060015,41664.0,41661.0,0.060015]
[1641693090893,0.060015,41664.0,41662.0,0.060015]
[1641693091094,0.070015,41664.0,41662.0,0.060015]
[1641693092395,0.060015,41664.0,41662.0,0.060015]
[1641693092696,0.060015,41664.0,41662.0,0.06001374]
[1641693092895,0.060015,41664.0,41655.0,0.62814749]
[1641693093097,0.113015,41664.0,41662.0,0.002]
[1641693094343,0.113015,41664.0,41655.0,0.27936131]
[1641693094344,0.42197438,41657.0,41655.0,0.27936131]
[1641693094543,0.060031,41656.0,41654.0,0.12004868]
[1641693095146,0.060031,41656.0,41654.0,0.12504868]
[1641693095147,0.080031,41656.0,41654.0,0.12504868]
[1641693095543,0.080031,41656.0,41654.0,0.005]
[1641693096444,0.060031,41656.0,41653.0,0.12017365]
[1641693097144,0.073031,41656.0,41653.0,0.12717365]
[1641693097342,0.06091,41655.0,41653.0,0.12717365]
[1641693098193,0.120941,41655.0,41653.0,0.12717365]
[1641693098392,0.120941,41655.0,41653.0,0.12017365]
[1641693098995,0.152941,41655.0,41653.0,0.12217365]
[1641693099395,0.152941,41655.0,41653.0,0.06214365]
[1641693100294,0.120941,41655.0,41653.0,0.06014365]
[1641693100797,0.120941,41655.0,41653.0,0.12017565]
[1641693100995,0.147941,41655.0,41653.0,0.12017565]
[1641693101442,0.147941,41655.0,41653.0,0.06014365]
[1641693102244,0.120941,41655.0,41653.0,0.06014365]
[1641693103043,0.140941,41655.0,41653.0,0.06014365]
[1641693103645,0.08091,41655.0,41654.0,0.91899911]
[1641693103845,0.08091,41655.0,41654.0,1.11899911]
[1641693104244,0.08091,41655.0,41654.0,0.81899911]
[1641693104444,0.06091,41661.0,41654.0,0.81899911]
[1641693104644,0.06091,41661.0,41657.0,0.06002182]
[1641693104947,0.06091,41659.0,41658.0,0.060022]
[1641693105589,0.06091,41659.0,41658.0,0.120044]
[1641693106389,0.06091,41659.0,41658.0,0.34594655]
[1641693106589,0.06091,41659.0,41658.0,0.73180355]
[1641693107090,0.10391,41659.0,41658.0,0.73980355]
[1641693108090,0.10391,41659.0,41658.0,0.513901]
[1641693108391,0.06091,41659.0,41657.0,0.12004485]
[1641693108691,0.120939,41659.0,41657.0,0.12004485]
[1641693109144,0.135939,41659.0,41657.0,0.12804485]
[1641693110447,0.120939,41659.0,41657.0,0.12004485]
[1641693111047,0.137939,41659.0,41657.0,0.12004485]
[1641693112248,0.137939,41659.0,41655.0,0.06003199]
[1641693112449,0.120939,41659.0,41653.0,0.00011]
[1641693113094,0.132939,41659.0,41653.0,0.00011]
[1641693113294,0.41815579,41654.0,41653.0,0.00011]
[1641693113894,0.41815579,41654.0,41653.0,0.06014526]
[1641693113895,0.73742844,41654.0,41653.0,0.06014526]
[1641693114098,0.73742844,41654.0,41653.0,0.00011]
[1641693114995,0.74542844,41654.0,41653.0,0.00011]
[1641693116944,0.73742844,41654.0,41653.0,0.00011]
[1641693117148,0.75742844,41654.0,41653.0,0.00011]
[1641693118147,0.43815579,41654.0,41653.0,0.00011]
[1641693118346,0.08091,41654.0,41653.0,0.00011]
[1641693118545,0.08091,41654.0,41653.0,0.58694643]
[1641693118945,0.06091,41654.0,41653.0,0.72280343]
[1641693119545,0.06091,41654.0,41653.0,0.71168792]
[1641693119746,0.06091,41654.0,41653.0,0.485967]
[1641693119944,0.06091,41654.0,41653.0,0.385967]
[1641693120209,0.06091,41654.0,41653.0,1.40850067]
[1641693120908,0.06091,41654.0,41653.0,0.385967]
[1641693121103,0.06291,41654.0,41653.0,0.385967]
[1641693121908,0.060024,41655.0,41654.0,0.60040255]
[1641693122103,0.060024,41655.0,41654.0,0.98625955]
[1641693123206,0.085024,41655.0,41654.0,0.98625955]
[1641693123606,0.025,41655.0,41654.0,1.26188888]
[1641693124051,0.025,41655.0,41654.0,1.31188888]
[1641693124246,0.00044226,41659.0,41654.0,1.31188888]
[1641693124447,0.00044226,41659.0,41657.0,0.06091]
[1641693124647,0.00044226,41659.0,41658.0,0.06091]
[1641693124849,0.80913084,41663.0,41658.0,0.06091]
[1641693124850,0.120039,41662.0,41658.0,0.06091]
[1641693125246,0.029,41659.0,41658.0,0.06091]
[1641693125447,0.029,41659.0,41658.0,1.20342279]
[1641693125647,0.029,41659.0,41658.0,1.32346079]
[1641693126047,0.029,41659.0,41658.0,1.20342279]
[1641693126449,0.060021,41660.0,41658.0,0.18095155]
[1641693127047,0.060021,41660.0,41658.0,0.18995155]
[1641693127048,0.090021,41660.0,41658.0,0.18995155]
[1641693127699,0.090021,41660.0,41658.0,0.24997655]
[1641693128396,0.060021,41660.0,41658.0,0.18095155]
[1641693128797,0.060021,41660.0,41658.0,0.24097755]
[1641693129193,0.067021,41660.0,41658.0,0.24697755]
[1641693129794,0.067021,41660.0,41659.0,0.06091]
[1641693130396,0.00044226,41664.0,41659.0,0.06091]
[1641693130397,0.060016,41661.0,41659.0,0.06091]
[1641693130996,0.87863088,41667.0,41659.0,0.06091]
[1641693131193,0.902,41670.0,41659.0,0.06991]
[1641693131194,0.036,41661.0,41659.0,0.06991]
[1641693132046,0.036,41661.0,41659.0,0.12992657]
[1641693132047,0.060023,41660.0,41659.0,0.12992657]
[1641693132345,0.060023,41660.0,41659.0,0.12092657]
[1641693132546,0.060023,41660.0,41659.0,0.12133714]
[1641693133148,0.092023,41660.0,41659.0,0.12833714]
[1641693133649,0.092023,41660.0,41659.0,0.1283279]
[1641693134447,0.060023,41660.0,41659.0,0.1213279]
[1641693134647,0.060023,41660.0,41659.0,0.12092657]
[1641693134849,0.060023,41660.0,41659.0,0.1213279]
[1641693135292,0.096023,41660.0,41659.0,0.1303279]
[1641693135797,0.096023,41660.0,41659.0,0.12992657]
[1641693135992,0.096023,41660.0,41659.0,0.13028241]
[1641693136694,0.096023,41660.0,41659.0,0.12128241]
[1641693136695,0.060023,41660.0,41659.0,0.12128241]
[1641693136893,0.060023,41660.0,41659.0,0.12092657]
[1641693137095,0.05948343,41660.0,41659.0,0.12128241]
[1641693137295,0.09448343,41660.0,41659.0,0.13028241]
[1641693137896,0.09448343,41660.0,41659.0,0.12992657]
[1641693138097,0.09448343,41660.0,41659.0,0.13028466]
[1641693138496,0.09448343,41660.0,41659.0,0.12128466]
[1641693138497,0.05948343,41660.0,41659.0,0.12128466]
[1641693139052,0.05948343,41660.0,41659.0,0.12092657]
[1641693139251,0.07548343,41660.0,41659.0,0.12928466]
[1641693139552,0.016,41660.0,41659.0,0.12928466]
[1641693140256,0.016,41660.0,41659.0,0.12929326]
[1641693140457,0.120034,41665.0,41662.0,0.06091]
[1641693140658,0.00044091,41669.0,41662.0,0.31799859]
[1641693140859,0.00044091,41669.0,41662.0,0.37238189]
[1641693141055,0.00044091,41669.0,41662.0,0.49423189]
[1641693141255,0.015,41665.0,41662.0,0.50423189]
[1641693141464,0.015,41665.0,41664.0,0.81091]
[1641693141654,0.015,41665.0,41664.0,1.56327335]
[1641693141855,0.015,41665.0,41664.0,1.93637596]
[1641693142056,0.015,41665.0,41664.0,2.03637596]
[1641693142460,0.00044096,41669.0,41664.0,3.05990651]
[1641693142703,0.00044096,41669.0,41668.0,1.296767]
[1641693142901,1.783,41689.0,41670.0,0.06091]
[1641693143103,1.1836,41689.0,41681.0,0.00123095]
[1641693143301,1.2415,41695.0,41685.0,0.06091]
[1641693143501,0.00551307,41688.0,41685.0,0.06091]
[1641693144304,0.00551307,41688.0,41687.0,0.06091]
[1641693144704,0.00596304,41688.0,41687.0,0.06091]
[1641693145103,0.04396304,41688.0,41687.0,0.06391]
[1641693145703,0.04351307,41688.0,41687.0,0.06391]
[1641693145903,0.04396304,41688.0,41687.0,0.06391]
[1641693146549,0.00596304,41688.0,41687.0,0.06091]
[1641693146753,0.06549507,41688.0,41687.0,0.11091]
[1641693146950,0.06594504,41688.0,41687.0,0.11091]
[1641693147154,0.10694504,41688.0,41687.0,0.11791]
[1641693147853,0.10649507,41688.0,41687.0,0.11791]
[1641693148051,0.10694504,41688.0,41687.0,0.11791]
[1641693148252,0.10694504,41688.0,41687.0,0.06791]
[1641693148452,0.06043197,41688.0,41687.0,0.06091]
[1641693149051,0.06042192,41688.0,41687.0,0.06091]
[1641693149253,0.09242192,41688.0,41687.0,0.06591]
[1641693150050,0.091982,41688.0,41687.0,0.06591]
[1641693150302,0.09242192,41688.0,41687.0,0.06591]
[1641693150502,0.06042192,41688.0,41687.0,0.06091]
[1641693150707,0.46042192,41688.0,41687.0,0.06091]
[1641693151103,0.56042192,41688.0,41687.0,0.06091]
[1641693151302,0.57642192,41688.0,41687.0,0.06491]
[1641693151703,1.2683876,41688.0,41687.0,0.06491]
[1641693152301,1.26794768,41688.0,41687.0,0.06491]
[1641693152502,1.2523876,41688.0,41687.0,0.06091]
[1641693153103,1.2633876,41688.0,41687.0,0.06091]
[1641693153305,1.0133876,41688.0,41687.0,0.06091]
[1641693153505,1.01338782,41688.0,41687.0,0.06091]
[1641693154347,0.91338782,41688.0,41687.0,0.06091]
[1641693154550,0.50165877,41688.0,41687.0,0.06091]
[1641693154747,0.50209891,41688.0,41687.0,0.06091]
[1641693154947,0.06013323,41688.0,41687.0,0.06091]
[1641693155149,0.07313323,41688.0,41687.0,0.06091]
[1641693156549,0.06013323,41688.0,41687.0,0.06091]
[1641693156753,0.05969309,41688.0,41687.0,0.06091]
[1641693156951,0.06013323,41688.0,41687.0,0.06091]
[1641693157351,0.10613323,41688.0,41687.0,0.06791]
[1641693157795,0.10569309,41688.0,41687.0,0.06791]
[1641693157995,0.10613323,41688.0,41687.0,0.06791]
[1641693158395,0.06013323,41688.0,41687.0,0.06091]
[1641693159197,0.03944014,41688.0,41687.0,0.06091]
[1641693159396,0.03944014,41688.0,41687.0,0.29209872]
[1641693159596,0.03944014,41688.0,41687.0,0.72795572]
[1641693159995,0.039,41688.0,41687.0,0.72795572]
[1641693160196,0.03944014,41688.0,41687.0,0.72795572]
[1641693160395,0.10035014,41688.0,41687.0,0.48599877]
[1641693160596,0.06135014,41688.0,41687.0,0.48612038]
[1641693160896,0.06135014,41688.0,41687.0,0.385857]
[1641693161097,0.06091,41688.0,41687.0,0.385857]
[1641693161298,0.06135014,41688.0,41687.0,0.398857]
[1641693162253,0.06091,41688.0,41687.0,0.448857]
[1641693162459,0.06135014,41688.0,41687.0,0.435857]
[1641693163157,0.06135014,41688.0,41687.0,0.447857]
[1641693163353,0.06091,41688.0,41687.0,0.447857]
[1641693163553,0.06135014,41688.0,41687.0,0.447857]
[1641693164554,0.06135014,41688.0,41687.0,0.435857]
[1641693165203,0.06135014,41688.0,41687.0,0.459857]
[1641693166403,0.06135014,41688.0,41687.0,0.435857]
[1641693166605,0.06091,41688.0,41687.0,0.435857]
[1641693166803,0.06135014,41688.0,41687.0,0.435857]
[1641693167303,0.06135014,41688.0,41687.0,0.458857]
[1641693167505,0.06135014,41688.0,41687.0,0.408857]
[1641693167709,0.06135014,41688.0,41687.0,0.023]
[1641693167710,0.06091,41688.0,41687.0,0.023]
[1641693167904,0.06135014,41688.0,41687.0,0.023]
[1641693168103,0.31538833,41688.0,41687.0,0.023]
[1641693168304,0.60174892,41688.0,41687.0,0.023]
[1641693168503,1.0572097,41688.0,41687.0,0.023]
[1641693169153,0.7182097,41688.0,41687.0,0.023]
[1641693169353,0.7182097,41688.0,41680.0,0.059996]
[1641693169553,0.06091,41683.0,41680.0,0.059996]
[1641693169753,0.180902,41683.0,41680.0,0.059996]
[1641693170154,0.00044014,41682.0,41680.0,0.059996]
[1641693170363,0.06091,41681.0,41680.0,0.059996]
[1641693171059,0.00727909,41680.0,41664.0,0.00122377]
[1641693171258,0.16091,41679.0,41664.0,0.00159249]
[1641693171457,0.06091,41677.0,41664.0,0.00159249]
[1641693171657,0.06091,41665.0,41664.0,0.00159249]
[1641693171857,0.06091,41665.0,41664.0,0.38622572]
[1641693172256,0.180945,41665.0,41664.0,0.38622587]
[1641693172458,0.180945,41665.0,41664.0,0.00036887]
[1641693173117,0.180945,41665.0,41663.0,0.2400136]
[1641693173314,0.180945,41665.0,41663.0,0.23806296]